[Event "CZE-ch U12 Open 2023"]
[Site "Teplice"]
[Date "2023.03.17"]
[Round "8.7"]
[White "Hladky, Mikulas"]
[Black "Maly, Jiri"]
[Result "1/2-1/2"]
[Annotator "NA RC COMBH"]
[ECO "A06"]
[WhiteElo "1476"]
[BlackElo "1520"]
[PlyCount "105"]
[EventDate "2023.03.09"]
[EventType "swiss"]
[EventCountry "CZE"]
[SourceTitle "playchess.com"]
[Source "ChessBase"]
[SourceQuality "1"]
[TimeControl "40/5400+30:1800+30"]

1. Nf3 {[%emt 0:00:22]} d5 {[%emt 0:00:24]} 2. c4 {[%emt 0:00:09]} c6 {[%emt 0:00:37]} 3. e3 {[%emt 0:00:16]} Nf6 {[%emt 0:00:33]} 4. Nc3 {[%emt 0:00:53]} h6 {[%emt 0:00:48]} 5. b3 {[%emt 0:00:47]} Bf5 {[%emt 0:00:38]} 6. Bb2 {[%emt 0:00:38]} e6 {[%emt 0:00:31]} 7. d4 {[%emt 0:00:48]} Be7 {[%emt 0:01:10]} 8. Be2 {[%emt 0:01:23]} O-O {[%emt 0:00:44]} 9. O-O {[%emt 0:01:03]} Nbd7 {[%emt 0:00:36]} 10. Rc1 {[%emt 0:01:17]} Ne4 {[%emt 0:00:53]} 11. Nxe4 {[%emt 0:03:39]} Bxe4 {[%emt 0:00:51]} 12. Bd3 {[%emt 0:01:45]} Bxd3 {[%emt 0:05:48]} 13. Qxd3 {[%emt 0:00:10]} a5 {[%emt 0:00:45]} 14. a3 {[%emt 0:04:08]} Qb6 {[%emt 0:03:18]} 15. c5 {[%emt 0:03:59]} Qc7 {[%emt 0:02:02]} 16. Qc3 {[%emt 0:02:39]} Rfe8 {[%emt 0:01:49]} 17. Nd2 {[%emt 0:05:20]} Nf6 {[%emt 0:01:21]} 18. f3 {[%emt 0:01:03]} Rad8 {[%emt 0:08:47]} 19. e4 {[%emt 0:02:39]} Bf8 {[%emt 0:01:40]} 20. e5 {[%emt 0:05:00]} Nd7 {[%emt 0:01:35]} 21. f4 {[%emt 0:01:28]} Ra8 {[%emt 0:29:21]} 22. Rf2 {[%emt 0:02:34]} Be7 {[%emt 0:03:12]} 23. Qh3 {[%emt 0:05:34]} f5 {[%emt 0:05:14]} 24. exf6 {[%emt 0:03:59]} Bxf6 {[%emt 0:00:47]} 25. Re1 {[%emt 0:01:27]} Nxc5 {[%emt 0:05:41]} 26. Ba1 {[%emt 0:01:00]} Nd7 {[%emt 0:01:14]} 27. Rxe6 {[%emt 0:01:12]} Nf8 {[%emt 0:02:21]} 28. Re3 {[%emt 0:02:42]} Rxe3 {[%emt 0:01:41]} 29. Qxe3 {[%emt 0:00:08]} Qe7 {[%emt 0:00:30]} 30. Qxe7 {[%emt 0:01:11]} Bxe7 {[%emt 0:00:06]} 31. Bb2 {[%emt 0:00:49]} a4 {[%emt 0:01:04]} 32. b4 {[%emt 0:00:16]} b5 {[%emt 0:01:00]} 33. Nf3 {[%emt 0:00:46]} Nd7 {[%emt 0:00:36]} 34. Ne5 {[%emt 0:00:34]} Nxe5 {[%emt 0:01:19]} 35. fxe5 {[%emt 0:05:06]} Bd8 {[%emt 0:00:57]} 36. Kf1 {[%emt 0:03:12]} Bb6 {[%emt 0:00:27]} 37. Ke2 {[%emt 0:02:20]} Re8 {[%emt 0:01:33]} 38. Ke3 {[%emt 0:01:43]} Re7 {[%emt 0:00:49]} 39. Rc2 {[%emt 0:01:16]} Rxe5+ {[%emt 0:00:45]} 40. Kf3 {[%emt 0:01:15]} Re6 {[%emt 0:00:14]} 41. Rc1 {[%emt 0:31:00]} Kf7 {[%emt 0:30:21]} 42. Rc2 {[%emt 0:00:44]} Rf6+ {[%emt 0:01:07]} 43. Ke2 {[%emt 0:00:27]} Ke7 {[%emt 0:00:35]} 44. g3 {[%emt 0:00:38]} h5 {[%emt 0:00:37]} 45. Bc1 {[%emt 0:03:30]} Kd7 {[%emt 0:00:24]} 46. Kd3 {[%emt 0:00:55]} g6 {[%emt 0:01:06]} 47. Be3 {[%emt 0:02:36]} Re6 {[%emt 0:01:02]} 48. Rf2 {[%emt 0:00:37]} Ke8 {[%emt 0:00:54]} 49. Rf3 {[%emt 0:02:29]} Bd8 {[%emt 0:01:02]} 50. Rf1 {[%emt 0:03:50]} Rf6 {[%emt 0:01:22]} 51. Re1 {[%emt 0:01:26]} Kd7 {[%emt 0:01:26]} 52. Bf4 {[%emt 0:01:43]} Rf7 {[%emt 0:02:16]} 53. Re2 {[%emt 0:00:21]} 1/2-1/2

[Event "CZE-ch U12 Open 2023"]
[Site "Teplice"]
[Date "2023.03.17"]
[Round "8.8"]
[White "Migalko, Dmitriy"]
[Black "Sboev, Kirill"]
[Result "0-1"]
[Annotator "NA RC COMBH"]
[ECO "A13"]
[WhiteElo "1581"]
[BlackElo "1506"]
[PlyCount "106"]
[EventDate "2023.03.09"]
[EventType "swiss"]
[EventCountry "CZE"]
[SourceTitle "playchess.com"]
[Source "ChessBase"]
[SourceQuality "1"]
[TimeControl "40/5400+30:1800+30"]

1. c4 {[%emt 0:00:11]} e6 {[%emt 0:00:10]} 2. e4 {[%emt 0:00:07]} e5 {[%emt 0:03:55]} 3. Nf3 {[%emt 0:01:40]} Nc6 {[%emt 0:00:37]} 4. d4 {[%emt 0:02:18]} exd4 {[%emt 0:02:13]} 5. Nxd4 {[%emt 0:00:10]} Bb4+ {[%emt 0:02:08]} 6. Nc3 {[%emt 0:05:31]} Nf6 {[%emt 0:03:32]} 7. Nxc6 {[%emt 0:04:02]} bxc6 {[%emt 0:00:24]} 8. Bd3 {[%emt 0:01:28]} d6 {[%emt 0:02:29]} 9. O-O {[%emt 0:01:20]} O-O {[%emt 0:00:22]} 10. Qc2 {[%emt 0:04:40]} Re8 {[%emt 0:04:00]} 11. f3 {[%emt 0:15:21]} d5 {[%emt 0:05:29]} 12. cxd5 {[%emt 0:05:57]} Bxc3 {[%emt 0:02:29]} 13. bxc3 {[%emt 0:05:13]} cxd5 {[%emt 0:00:20]} 14. exd5 {[%emt 0:03:17]} Qxd5 {[%emt 0:00:15]} 15. Rd1 {[%emt 0:00:45]} Kh8 {[%emt 0:02:55]} 16. Ba3 {[%emt 0:05:43]} Qg5 {[%emt 0:03:42]} 17. Qd2 {[%emt 0:03:19]} Qxd2 {[%emt 0:02:09]} 18. Rxd2 {[%emt 0:00:39]} Bd7 {[%emt 0:02:28]} 19. Bc4 {[%emt 0:02:35]} Be6 {[%emt 0:01:27]} 20. Bxe6 {[%emt 0:07:22]} Rxe6 {[%emt 0:00:58]} 21. Rad1 {[%emt 0:00:10]} Ree8 {[%emt 0:01:49]} 22. Rb2 {[%emt 0:03:00]} Rab8 {[%emt 0:03:39]} 23. Rxb8 {[%emt 0:01:16]} Rxb8 {[%emt 0:00:08]} 24. Kf2 {[%emt 0:00:47]} h6 {[%emt 0:01:40]} 25. g4 {[%emt 0:01:28]} Kh7 {[%emt 0:01:53]} 26. Kg3 {[%emt 0:01:27]} Kg6 {[%emt 0:02:39]} 27. h4 {[%emt 0:04:44]} Rb6 {[%emt 0:05:55]} 28. h5+ {[%emt 0:01:36]} Kh7 {[%emt 0:00:12]} 29. Bc5 {[%emt 0:01:18]} Ra6 {[%emt 0:01:20]} 30. a3 {[%emt 0:00:13]} Ra5 {[%emt 0:01:19]} 31. Bb4 {[%emt 0:00:40]} Rd5 {[%emt 0:02:18]} 32. Rxd5 {[%emt 0:01:04]} Nxd5 {[%emt 0:00:07]} 33. c4 {[%emt 0:00:21]} Ne3 {[%emt 0:02:51]} 34. c5 {[%emt 0:00:22]} c6 {[%emt 0:01:02]} 35. Kf4 {[%emt 0:02:18]} Nc4 {[%emt 0:04:15]} 36. Ke4 {[%emt 0:01:41]} a5 {[%emt 0:02:54]} 37. Kd4 {[%emt 0:00:17]} axb4 {[%emt 0:00:10]} 38. Kxc4 {[%emt 0:00:04]} bxa3 {[%emt 0:00:10]} 39. Kb3 {[%emt 0:00:03]} g5 {[%emt 0:00:12]} 40. Kxa3 {[%emt 0:00:28]} Kg7 {[%emt 0:00:11]} 41. Kb4 {[%emt 0:30:46]} Kf6 {[%emt 0:30:14]} 42. Kc3 {[%emt 0:00:14]} Ke5 {[%emt 0:00:11]} 43. Kc4 {[%emt 0:00:06]} Kf4 {[%emt 0:00:55]} 44. Kd4 {[%emt 0:00:36]} f6 {[%emt 0:00:13]} 45. Kc4 {[%emt 0:00:28]} Kxf3 {[%emt 0:00:17]} 46. Kb4 {[%emt 0:00:05]} Kxg4 {[%emt 0:00:52]} 47. Ka5 {[%emt 0:00:03]} f5 {[%emt 0:00:21]} 48. Kb6 {[%emt 0:00:01]} f4 {[%emt 0:00:12]} 49. Kxc6 {[%emt 0:00:08]} f3 {[%emt 0:00:07]} 50. Kb7 {[%emt 0:00:02]} f2 {[%emt 0:00:09]} 51. c6 {[%emt 0:00:00]} f1=Q {[%emt 0:00:06]} 52. c7 {[%emt 0:00:05]} Qc4 {[%emt 0:00:21]} 53. Ka8 {[%emt 0:00:23]} Kf4 0-1

[Event "CZE-ch U12 Open 2023"]
[Site "Teplice"]
[Date "2023.03.17"]
[Round "8.9"]
[White "Sudrich, Radek"]
[Black "Komarek, Tobias"]
[Result "0-1"]
[Annotator "TA"]
[ECO "B78"]
[WhiteElo "2054"]
[BlackElo "1515"]
[PlyCount "54"]
[EventDate "2023.03.09"]
[EventType "swiss"]
[EventCountry "CZE"]
[SourceTitle "playchess.com"]
[Source "ChessBase"]
[SourceQuality "1"]
[TimeControl "40/5400+30:1800+30"]

{[%evp 23,54,16,38,0,0,0,0,0,0,0,0,-118,-96,-117,-92,-102,-95,-364,-364,-364,-366,-360,-356,-363,-355,-312,-331,-313,-237,-1004,-983,-29997,-29998]} 1. e4 {[%emt 0:00:05]} c5 {[%emt 0:00:09]} 2. Nf3 {[%emt 0:00:22]} Nc6 {[%emt 0:00:16]} 3. d4 {[%emt 0:02:46]} cxd4 {[%emt 0:00:23]} 4. Nxd4 {[%emt 0:02:54]} g6 {[%emt 0:00:30]} 5. Nc3 {[%emt 0:02:52]} Bg7 {[%emt 0:00:27]} 6. Be3 {[%emt 0:02:04]} Nf6 {[%emt 0:02:21]} 7. f3 {[%emt 0:01:27]} O-O {[%emt 0:03:03]} 8. Qd2 {[%emt 0:00:43]} d6 {[%emt 0:01:33]} 9. O-O-O {[%emt 0:11:45]} Bd7 {[%emt 0:03:22]} 10. Bc4 {[%emt 0:10:56]} Rc8 {[%emt 0:01:48]} 11. Bb3 {[%emt 0:03:39]} Nxd4 {[%emt 0:01:19]} 12. Bxd4 {[%emt 0:02:31]} b5 $1 {[%emt 0:07:01][%cal Bb7b5,Bb5b4][%mdl 32]} 13. Kb1 {[%emt 0:02:37] B78: Sicilian Dragon: Yugoslav Attack, 9 Bc4 Bd7 10 0-0-0 Rc8.} b4 {[%emt 0:04:06]} 14. Nd5 {[%emt 0:00:40]} Nxd5 {[%emt 0:01:16]} 15. Bxg7 {[%emt 0:02:13] The position is equal.} Kxg7 {[%emt 0:00:44]} 16. exd5 {[%emt 0:01:16]} (16. Bxd5 {looks sharper.} Qc7 17. h4 h5 18. g4) 16... a5 {[%emt 0:01:20] [#] aiming for ...Qc7.} 17. a3 $146 {[%emt 0:02:10]} (17. h4 $11) ({Predecessor:} 17. Qd4+ Kg8 18. h4 Qc7 19. h5 a4 20. hxg6 fxg6 21. Rxh7 Kxh7 22. Rh1+ Kg8 23. Rh8+ {0-1 Miller,D (2201)-Reeve,J (2258) Edmonton-ch Edmonton, 2019 (3.2)}) 17... bxa3 {[%emt 0:01:26]} 18. bxa3 {[%emt 0:00:09]} a4 {[%emt 0:00:04]} 19. Qd4+ {[%emt 0:01:04]} Kg8 {[%emt 0:00:14]} 20. Bxa4 {[%emt 0:00:29][%mdl 8192]} (20. Ba2 $17) 20... Bxa4 $19 {[%emt 0:00:35]} 21. Qxa4 {[%emt 0:00:14]} Ra8 {[%emt 0:00:46][%mdl 64] [#] Skewer, Deflection} ({Inferior is} 21... Qc7 22. Rd3 $15) 22. Qd4 {[%emt 0:01:53]} Rxa3 {[%emt 0:02:33]} 23. Rd3 {[%emt 0:01:02]} Qa5 {[%emt 0:03:10]} 24. Rxa3 {[%emt 0:00:41]} Qxa3 {[%emt 0:00:09]} 25. Qb2 {[%emt 0:01:26] Prevents Rb8.} Qa7 {[%emt 0:01:55]} 26. Qa2 $2 {[%emt 0:04:00] [#]} (26. Qc3) 26... Rb8+ {[%emt 0:00:09]} 27. Ka1 {[%emt 0:00:08]} Qd4+ {[%emt 0:00:06] Black took control after the opening.   Weighted Error Value: White=1.15/Black=0.07 (flawless)} 0-1

[Event "CZE-ch U12 Open 2023"]
[Site "Teplice"]
[Date "2023.03.17"]
[Round "8.11"]
[White "Mazurek, Richard"]
[Black "Frantsev, Iegor"]
[Result "0-1"]
[Annotator "NA RC COMBH"]
[ECO "A06"]
[WhiteElo "1137"]
[BlackElo "1424"]
[PlyCount "74"]
[EventDate "2023.03.09"]
[EventType "swiss"]
[EventCountry "CZE"]
[SourceTitle "playchess.com"]
[Source "ChessBase"]
[SourceQuality "1"]
[TimeControl "40/5400+30:1800+30"]

1. Nf3 {[%emt 0:00:16]} d5 {[%emt 0:00:04]} 2. g3 {[%emt 0:00:03]} Nf6 {[%emt 0:00:10]} 3. Bg2 {[%emt 0:00:06]} c6 {[%emt 0:00:06]} 4. d4 {[%emt 0:00:33]} Bf5 {[%emt 0:00:53]} 5. O-O {[%emt 0:00:44]} e6 {[%emt 0:00:21]} 6. Nbd2 {[%emt 0:01:39]} Nbd7 {[%emt 0:01:12]} 7. c4 {[%emt 0:02:04]} h6 {[%emt 0:05:16]} 8. cxd5 {[%emt 0:03:20]} exd5 {[%emt 0:00:37]} 9. Nb3 {[%emt 0:02:41]} Bd6 {[%emt 0:01:41]} 10. Re1 {[%emt 0:01:06]} O-O {[%emt 0:00:38]} 11. Bd2 {[%emt 0:02:01]} Ne4 {[%emt 0:00:54]} 12. Be3 {[%emt 0:00:25]} Re8 {[%emt 0:04:16]} 13. Qc1 {[%emt 0:00:25]} Ndf6 {[%emt 0:09:11]} 14. Bf4 {[%emt 0:06:35]} Bxf4 {[%emt 0:02:04]} 15. Qxf4 {[%emt 0:00:51]} Bh7 {[%emt 0:00:42]} 16. Qc1 {[%emt 0:01:37]} Qe7 {[%emt 0:10:04]} 17. e3 {[%emt 0:02:09]} Rad8 {[%emt 0:11:25]} 18. Nfd2 {[%emt 0:01:19]} Qd7 {[%emt 0:02:37]} 19. Nxe4 {[%emt 0:00:17]} Nxe4 {[%emt 0:00:26]} 20. Nc5 {[%emt 0:00:38]} Nxc5 {[%emt 0:06:33]} 21. Qxc5 {[%emt 0:00:23]} a6 {[%emt 0:01:35]} 22. Rac1 {[%emt 0:01:08]} Be4 {[%emt 0:12:42]} 23. Qb6 {[%emt 0:01:37]} Bxg2 {[%emt 0:03:20]} 24. Kxg2 {[%emt 0:01:24]} Re6 {[%emt 0:00:01]} 25. Rc5 {[%emt 0:00:20]} Rf6 {[%emt 0:01:08]} 26. Re2 {[%emt 0:00:41]} Re8 {[%emt 0:00:47]} 27. Rc3 {[%emt 0:01:17]} Qg4 {[%emt 0:02:38]} 28. Rcc2 {[%emt 0:00:43]} Qf3+ {[%emt 0:00:43]} 29. Kg1 {[%emt 0:00:16]} Kh7 {[%emt 0:05:46]} 30. Qxb7 {[%emt 0:00:08]} Rxe3 {[%emt 0:00:46]} 31. Rxe3 {[%emt 0:00:46]} Qd1+ {[%emt 0:00:12]} 32. Kg2 {[%emt 0:00:10]} Qxc2 {[%emt 0:00:05]} 33. Kh3 {[%emt 0:02:28]} Qxf2 {[%emt 0:00:39]} 34. Qb3 {[%emt 0:00:26]} Qf1+ {[%emt 0:00:26]} 35. Kg4 {[%emt 0:00:29]} Qf5+ {[%emt 0:00:13]} 36. Kh4 {[%emt 0:00:15]} g5+ {[%emt 0:00:06]} 37. Kh5 {[%emt 0:00:10]} Qh3# {[%emt 0:00:05]} 0-1

[Event "CZE-ch U12 Open 2023"]
[Site "Teplice"]
[Date "2023.03.17"]
[Round "8.12"]
[White "Kupka, Alexandr"]
[Black "Krisica, Lukas"]
[Result "1-0"]
[Annotator "NA RC COMBH"]
[ECO "C02"]
[WhiteElo "1220"]
[BlackElo "1342"]
[PlyCount "63"]
[EventDate "2023.03.09"]
[EventType "swiss"]
[EventCountry "CZE"]
[SourceTitle "playchess.com"]
[Source "ChessBase"]
[SourceQuality "1"]
[TimeControl "40/5400+30:1800+30"]

1. e4 {[%emt 0:00:01]} c5 {[%emt 0:00:45]} 2. c3 {[%emt 0:00:59]} e6 {[%emt 0:00:21]} 3. d4 {[%emt 0:00:10]} d5 {[%emt 0:00:20]} 4. e5 {[%emt 0:00:15]} b6 {[%emt 0:01:05]} 5. Nf3 {[%emt 0:00:46]} Qd7 {[%emt 0:01:03]} 6. a3 {[%emt 0:01:48]} Ba6 {[%emt 0:01:32]} 7. Bxa6 {[%emt 0:03:57]} Nxa6 {[%emt 0:00:22]} 8. b4 {[%emt 0:00:42]} c4 {[%emt 0:05:57]} 9. O-O {[%emt 0:02:15]} Ne7 {[%emt 0:00:44]} 10. Re1 {[%emt 0:04:11]} Nf5 {[%emt 0:00:54]} 11. Nbd2 {[%emt 0:00:15]} Be7 {[%emt 0:01:11]} 12. Nf1 {[%emt 0:01:09]} O-O {[%emt 0:01:13]} 13. Ng3 {[%emt 0:01:38]} Nc7 {[%emt 0:01:28]} 14. Ng5 {[%emt 0:04:46]} h6 {[%emt 0:01:50]} 15. Nf3 {[%emt 0:02:18]} Rac8 {[%emt 0:01:16]} 16. a4 {[%emt 0:01:08]} Rfe8 {[%emt 0:02:41]} 17. Nd2 {[%emt 0:05:21]} a6 {[%emt 0:14:36]} 18. Qf3 {[%emt 0:05:09]} b5 {[%emt 0:08:06]} 19. a5 {[%emt 0:03:18]} Rf8 {[%emt 0:13:05]} 20. Ndf1 {[%emt 0:04:47]} Nh4 {[%emt 0:02:58]} 21. Qg4 {[%emt 0:03:43]} Nf5 {[%emt 0:10:49]} 22. Nh5 {[%emt 0:08:56]} g6 {[%emt 0:06:09]} 23. Nfg3 {[%emt 0:13:54]} Nxg3 {[%emt 0:04:18]} 24. fxg3 {[%emt 0:09:34]} g5 {[%emt 0:03:42]} 25. h4 {[%emt 0:12:55]} Kh7 {[%emt 0:02:56]} 26. Rf1 {[%emt 0:04:01]} Qd8 {[%emt 0:04:03]} 27. Nf6+ {[%emt 0:02:04]} Bxf6 {[%emt 0:00:23]} 28. Rxf6 {[%emt 0:00:40]} Ne8 {[%emt 0:04:17]} 29. Rxh6+ {[%emt 0:03:20]} Kg8 {[%emt 0:01:46]} 30. Bxg5 {[%emt 0:00:15]} Qd7 {[%emt 0:00:47]} 31. Bf6+ {[%emt 0:00:29]} Ng7 {[%emt 0:00:49]} 32. Qxg7# {[%emt 0:00:07]} 1-0